Workbook

Sheet List1
A1: VÝSLEDKY DĚTSKÉ SOUTĚŽE
A2: KATEGORIE MLADŠÍ | F2: POŽÁRNÍ OCHRANA | J2: UZLOVÁ ŠTAFETA | S2: ZÁKLADY TOPOGRAFIE | W2: ZDRAVOVĚDA | AA2: URČENÍ PROSTŘEDKŮ | AE2: ŠTAFETA POŽ. DVOJIC | AK2: STŘELBA VZDUCHOVKA | AO2: SOUČET "POŘADÍ"
A3: Blovice | B3: 13.10.2018
F4: Max. trest.bodů | I4: 10 | J4: 1 trestný bod = | O4: 1 | P4: min. | S4: Max. trest.bodů | V4: 15 | W4: Max. trest.bodů | Z4: 15 | AA4: Max. trest.bodů | AD4: 15 | AE4: 1 trestný bod = | AI4: 1 | AJ4: sek. | AK4: Max. trest.bodů | AN4: 15
A5: KONEČNÉ POŘADÍ | B5: Start. číslo | C5: DRUŽSTVO | G5: Trestné body | I5: POŘADÍ | J5: čas min. : sek. | M5: Trestné body | N5: Čas s penalizací | Q5: celkem sek. | R5: POŘADÍ | T5: Trestné body | V5: POŘADÍ | X5: Trestné body | Z5: POŘADÍ | AB5: Trestné body | AD5: POŘADÍ | AE5: čas min. : sek. | AH5: Trestné body | AI5: celkem sek. | AJ5: POŘADÍ | AL5: Trestné body | AN5: POŘADÍ
A6: 1 | B6: 2 | C6: SDH Žákava 2 | G6: 0 | I6: =RANK(G6,$G$6:$G$50,1) -> 1 | J6: 0 | K6: : | L6: 25.86 | M6: 0 | N6: =J6+(M6*1) -> 0 | O6: : | P6: =L6 -> 25.86 | Q6: =(N6*60)+(P6) -> 25.86 | R6: =RANK(Q6,$Q$6:$Q$50,1) -> 1 | T6: 0 | V6: =RANK(T6,$T$6:$T$50,1) -> 1 | X6: 0 | Z6: =RANK(X6,$X$6:$X$50,1) -> 1 | AB6: 0 | AD6: =RANK(AB6,$AB$6:$AB$50,1) -> 1 | AE6: 1 | AF6: : | AG6: 10.81 | AH6: 0 | AI6: =(AE6*60)+(AG6)+(AH6) -> 70.81 | AJ6: =RANK(AI6,$AI$6:$AI$50,1) -> 2 | AL6: 3 | AN6: =RANK(AL6,$AL$6:$AL$50,1) -> 1 | AP6: =IF(C6<>"x",I6+R6+V6+Z6+AD6+AJ6+AN6,999999) -> 8
A7: 2 | B7: 9 | C7: SDH Letkov 1 | G7: 0 | I7: =RANK(G7,$G$6:$G$50,1) -> 1 | J7: 0 | K7: : | L7: 27.44 | M7: 0 | N7: =J7+(M7*1) -> 0 | O7: : | P7: =L7 -> 27.44 | Q7: =(N7*60)+(P7) -> 27.44 | R7: =RANK(Q7,$Q$6:$Q$50,1) -> 2 | T7: 0 | V7: =RANK(T7,$T$6:$T$50,1) -> 1 | X7: 0 | Z7: =RANK(X7,$X$6:$X$50,1) -> 1 | AB7: 0 | AD7: =RANK(AB7,$AB$6:$AB$50,1) -> 1 | AE7: 1 | AF7: : | AG7: 9.62 | AH7: 0 | AI7: =(AE7*60)+(AG7)+(AH7) -> 69.62 | AJ7: =RANK(AI7,$AI$6:$AI$50,1) -> 1 | AL7: 6 | AN7: =RANK(AL7,$AL$6:$AL$50,1) -> 3 | AP7: =IF(C7<>"x",I7+R7+V7+Z7+AD7+AJ7+AN7,999999) -> 10
A8: 3 | B8: 4 | C8: SDH Střížovice | G8: 0 | I8: =RANK(G8,$G$6:$G$50,1) -> 1 | J8: 1 | K8: : | L8: 6.71 | M8: 0 | N8: =J8+(M8*1) -> 1 | O8: : | P8: =L8 -> 6.71 | Q8: =(N8*60)+(P8) -> 66.71 | R8: =RANK(Q8,$Q$6:$Q$50,1) -> 6 | T8: 0 | V8: =RANK(T8,$T$6:$T$50,1) -> 1 | X8: 0 | Z8: =RANK(X8,$X$6:$X$50,1) -> 1 | AB8: 0 | AD8: =RANK(AB8,$AB$6:$AB$50,1) -> 1 | AE8: 1 | AF8: : | AG8: 32.67 | AH8: 0 | AI8: =(AE8*60)+(AG8)+(AH8) -> 92.67 | AJ8: =RANK(AI8,$AI$6:$AI$50,1) -> 7 | AL8: 5 | AN8: =RANK(AL8,$AL$6:$AL$50,1) -> 2 | AP8: =IF(C8<>"x",I8+R8+V8+Z8+AD8+AJ8+AN8,999999) -> 19
A9: 4 | B9: 17 | C9: SDH Nepomuk 1 | G9: 0 | I9: =RANK(G9,$G$6:$G$50,1) -> 1 | J9: 1 | K9: : | L9: 13.92 | M9: 3 | N9: =J9+(M9*1) -> 4 | O9: : | P9: =L9 -> 13.92 | Q9: =(N9*60)+(P9) -> 253.92 | R9: =RANK(Q9,$Q$6:$Q$50,1) -> 9 | T9: 0 | V9: =RANK(T9,$T$6:$T$50,1) -> 1 | X9: 0 | Z9: =RANK(X9,$X$6:$X$50,1) -> 1 | AB9: 0 | AD9: =RANK(AB9,$AB$6:$AB$50,1) -> 1 | AE9: 1 | AF9: : | AG9: 22.34 | AH9: 0 | AI9: =(AE9*60)+(AG9)+(AH9) -> 82.34 | AJ9: =RANK(AI9,$AI$6:$AI$50,1) -> 4 | AL9: 6 | AN9: =RANK(AL9,$AL$6:$AL$50,1) -> 3 | AP9: =IF(C9<>"x",I9+R9+V9+Z9+AD9+AJ9+AN9,999999) -> 20
A10: 5 | B10: 6 | C10: SDH Želčany 1 | G10: 0 | I10: =RANK(G10,$G$6:$G$50,1) -> 1 | J10: 0 | K10: : | L10: 28.65 | M10: 0 | N10: =J10+(M10*1) -> 0 | O10: : | P10: =L10 -> 28.65 | Q10: =(N10*60)+(P10) -> 28.65 | R10: =RANK(Q10,$Q$6:$Q$50,1) -> 3 | T10: 0 | V10: =RANK(T10,$T$6:$T$50,1) -> 1 | X10: 0 | Z10: =RANK(X10,$X$6:$X$50,1) -> 1 | AB10: 1 | AD10: =RANK(AB10,$AB$6:$AB$50,1) -> 14 | AE10: 1 | AF10: : | AG10: 14.05 | AH10: 0 | AI10: =(AE10*60)+(AG10)+(AH10) -> 74.05 | AJ10: =RANK(AI10,$AI$6:$AI$50,1) -> 3 | AL10: 6 | AN10: =RANK(AL10,$AL$6:$AL$50,1) -> 3 | AP10: =IF(C10<>"x",I10+R10+V10+Z10+AD10+AJ10+AN10,999999) -> 26
A11: 6 | B11: 13 | C11: SDH Hořehledy | G11: 0 | I11: =RANK(G11,$G$6:$G$50,1) -> 1 | J11: 1 | K11: : | L11: 7.38 | M11: 3 | N11: =J11+(M11*1) -> 4 | O11: : | P11: =L11 -> 7.38 | Q11: =(N11*60)+(P11) -> 247.38 | R11: =RANK(Q11,$Q$6:$Q$50,1) -> 8 | T11: 0 | V11: =RANK(T11,$T$6:$T$50,1) -> 1 | X11: 0 | Z11: =RANK(X11,$X$6:$X$50,1) -> 1 | AB11: 0 | AD11: =RANK(AB11,$AB$6:$AB$50,1) -> 1 | AE11: 1 | AF11: : | AG11: 22.93 | AH11: 0 | AI11: =(AE11*60)+(AG11)+(AH11) -> 82.93 | AJ11: =RANK(AI11,$AI$6:$AI$50,1) -> 5 | AL11: 8 | AN11: =RANK(AL11,$AL$6:$AL$50,1) -> 11 | AP11: =IF(C11<>"x",I11+R11+V11+Z11+AD11+AJ11+AN11,999999) -> 28
A12: 7 | B12: 20 | C12: SDH Dnešice 1 | G12: 0 | I12: =RANK(G12,$G$6:$G$50,1) -> 1 | J12: 0 | K12: : | L12: 38.29 | M12: 0 | N12: =J12+(M12*1) -> 0 | O12: : | P12: =L12 -> 38.29 | Q12: =(N12*60)+(P12) -> 38.29 | R12: =RANK(Q12,$Q$6:$Q$50,1) -> 4 | T12: 0 | V12: =RANK(T12,$T$6:$T$50,1) -> 1 | X12: 0 | Z12: =RANK(X12,$X$6:$X$50,1) -> 1 | AB12: 0 | AD12: =RANK(AB12,$AB$6:$AB$50,1) -> 1 | AE12: 1 | AF12: : | AG12: 39.79 | AH12: 0 | AI12: =(AE12*60)+(AG12)+(AH12) -> 99.79 | AJ12: =RANK(AI12,$AI$6:$AI$50,1) -> 12 | AL12: 8 | AN12: =RANK(AL12,$AL$6:$AL$50,1) -> 11 | AP12: =IF(C12<>"x",I12+R12+V12+Z12+AD12+AJ12+AN12,999999) -> 31
A13: 8 | B13: 21 | C13: SDH Nebílovy 1 | G13: 0 | I13: =RANK(G13,$G$6:$G$50,1) -> 1 | J13: 1 | K13: : | L13: 20.55 | M13: 3 | N13: =J13+(M13*1) -> 4 | O13: : | P13: =L13 -> 20.55 | Q13: =(N13*60)+(P13) -> 260.55 | R13: =RANK(Q13,$Q$6:$Q$50,1) -> 11 | T13: 0 | V13: =RANK(T13,$T$6:$T$50,1) -> 1 | X13: 0 | Z13: =RANK(X13,$X$6:$X$50,1) -> 1 | AB13: 1 | AD13: =RANK(AB13,$AB$6:$AB$50,1) -> 14 | AE13: 1 | AF13: : | AG13: 20.53 | AH13: 10 | AI13: =(AE13*60)+(AG13)+(AH13) -> 90.53 | AJ13: =RANK(AI13,$AI$6:$AI$50,1) -> 6 | AL13: 6 | AN13: =RANK(AL13,$AL$6:$AL$50,1) -> 3 | AP13: =IF(C13<>"x",I13+R13+V13+Z13+AD13+AJ13+AN13,999999) -> 37
A14: 9 | B14: 3 | C14: SDH Chlum | G14: 0 | I14: =RANK(G14,$G$6:$G$50,1) -> 1 | J14: 1 | K14: : | L14: 18.54 | M14: 3 | N14: =J14+(M14*1) -> 4 | O14: : | P14: =L14 -> 18.54 | Q14: =(N14*60)+(P14) -> 258.54 | R14: =RANK(Q14,$Q$6:$Q$50,1) -> 10 | T14: 0 | V14: =RANK(T14,$T$6:$T$50,1) -> 1 | X14: 0 | Z14: =RANK(X14,$X$6:$X$50,1) -> 1 | AB14: 1 | AD14: =RANK(AB14,$AB$6:$AB$50,1) -> 14 | AE14: 1 | AF14: : | AG14: 26.78 | AH14: 10 | AI14: =(AE14*60)+(AG14)+(AH14) -> 96.78 | AJ14: =RANK(AI14,$AI$6:$AI$50,1) -> 9 | AL14: 6 | AN14: =RANK(AL14,$AL$6:$AL$50,1) -> 3 | AP14: =IF(C14<>"x",I14+R14+V14+Z14+AD14+AJ14+AN14,999999) -> 39
A15: 10 | B15: 22 | C15: SDH Nepomuk 3 | G15: 0 | I15: =RANK(G15,$G$6:$G$50,1) -> 1 | J15: 2 | K15: : | L15: 38.09 | M15: 6 | N15: =J15+(M15*1) -> 8 | O15: : | P15: =L15 -> 38.09 | Q15: =(N15*60)+(P15) -> 518.09 | R15: =RANK(Q15,$Q$6:$Q$50,1) -> 18 | T15: 0 | V15: =RANK(T15,$T$6:$T$50,1) -> 1 | X15: 0 | Z15: =RANK(X15,$X$6:$X$50,1) -> 1 | AB15: 0 | AD15: =RANK(AB15,$AB$6:$AB$50,1) -> 1 | AE15: 1 | AF15: : | AG15: 54.84 | AH15: 0 | AI15: =(AE15*60)+(AG15)+(AH15) -> 114.84 | AJ15: =RANK(AI15,$AI$6:$AI$50,1) -> 20 | AL15: 7 | AN15: =RANK(AL15,$AL$6:$AL$50,1) -> 9 | AP15: =IF(C15<>"x",I15+R15+V15+Z15+AD15+AJ15+AN15,999999) -> 51
A16: 11 | B16: 19 | C16: SDH Nepomuk 2 | G16: 0 | I16: =RANK(G16,$G$6:$G$50,1) -> 1 | J16: 0 | K16: : | L16: 32.64 | M16: 9 | N16: =J16+(M16*1) -> 9 | O16: : | P16: =L16 -> 32.64 | Q16: =(N16*60)+(P16) -> 572.64 | R16: =RANK(Q16,$Q$6:$Q$50,1) -> 19 | T16: 0 | V16: =RANK(T16,$T$6:$T$50,1) -> 1 | X16: 0 | Z16: =RANK(X16,$X$6:$X$50,1) -> 1 | AB16: 0 | AD16: =RANK(AB16,$AB$6:$AB$50,1) -> 1 | AE16: 1 | AF16: : | AG16: 39.71 | AH16: 10 | AI16: =(AE16*60)+(AG16)+(AH16) -> 109.71 | AJ16: =RANK(AI16,$AI$6:$AI$50,1) -> 17 | AL16: 11 | AN16: =RANK(AL16,$AL$6:$AL$50,1) -> 16 | AP16: =IF(C16<>"x",I16+R16+V16+Z16+AD16+AJ16+AN16,999999) -> 56
A17: 12 | B17: 1 | C17: SDH Žákava 1 | G17: 0 | I17: =RANK(G17,$G$6:$G$50,1) -> 1 | J17: 0 | K17: : | L17: 35.69 | M17: 6 | N17: =J17+(M17*1) -> 6 | O17: : | P17: =L17 -> 35.69 | Q17: =(N17*60)+(P17) -> 395.69 | R17: =RANK(Q17,$Q$6:$Q$50,1) -> 13 | T17: 0 | V17: =RANK(T17,$T$6:$T$50,1) -> 1 | X17: 0 | Z17: =RANK(X17,$X$6:$X$50,1) -> 1 | AB17: 2 | AD17: =RANK(AB17,$AB$6:$AB$50,1) -> 20 | AE17: 1 | AF17: : | AG17: 37.54 | AH17: 0 | AI17: =(AE17*60)+(AG17)+(AH17) -> 97.54 | AJ17: =RANK(AI17,$AI$6:$AI$50,1) -> 10 | AL17: 10 | AN17: =RANK(AL17,$AL$6:$AL$50,1) -> 14 | AP17: =IF(C17<>"x",I17+R17+V17+Z17+AD17+AJ17+AN17,999999) -> 60
A18: 13 | B18: 8 | C18: SDH Chlumčany | G18: 0 | I18: =RANK(G18,$G$6:$G$50,1) -> 1 | J18: 1 | K18: : | L18: 29.98 | M18: 6 | N18: =J18+(M18*1) -> 7 | O18: : | P18: =L18 -> 29.98 | Q18: =(N18*60)+(P18) -> 449.98 | R18: =RANK(Q18,$Q$6:$Q$50,1) -> 15 | T18: 0 | V18: =RANK(T18,$T$6:$T$50,1) -> 1 | X18: 0 | Z18: =RANK(X18,$X$6:$X$50,1) -> 1 | AB18: 1 | AD18: =RANK(AB18,$AB$6:$AB$50,1) -> 14 | AE18: 1 | AF18: : | AG18: 46.59 | AH18: 0 | AI18: =(AE18*60)+(AG18)+(AH18) -> 106.59 | AJ18: =RANK(AI18,$AI$6:$AI$50,1) -> 15 | AL18: 11 | AN18: =RANK(AL18,$AL$6:$AL$50,1) -> 16 | AP18: =IF(C18<>"x",I18+R18+V18+Z18+AD18+AJ18+AN18,999999) -> 63
A19: 14 | B19: 24 | C19: SDH Dnešice 2 | G19: 3 | I19: =RANK(G19,$G$6:$G$50,1) -> 23 | J19: 1 | K19: : | L19: 28.19 | M19: 0 | N19: =J19+(M19*1) -> 1 | O19: : | P19: =L19 -> 28.19 | Q19: =(N19*60)+(P19) -> 88.19 | R19: =RANK(Q19,$Q$6:$Q$50,1) -> 7 | T19: 0 | V19: =RANK(T19,$T$6:$T$50,1) -> 1 | X19: 0 | Z19: =RANK(X19,$X$6:$X$50,1) -> 1 | AB19: 0 | AD19: =RANK(AB19,$AB$6:$AB$50,1) -> 1 | AE19: 1 | AF19: : | AG19: 45.13 | AH19: 0 | AI19: =(AE19*60)+(AG19)+(AH19) -> 105.13 | AJ19: =RANK(AI19,$AI$6:$AI$50,1) -> 14 | AL19: 13 | AN19: =RANK(AL19,$AL$6:$AL$50,1) -> 21 | AP19: =IF(C19<>"x",I19+R19+V19+Z19+AD19+AJ19+AN19,999999) -> 68
A20: 15 | B20: 11 | C20: SDH Želčany 2 | G20: 0 | I20: =RANK(G20,$G$6:$G$50,1) -> 1 | J20: 1 | K20: : | L20: 45.53 | M20: 12 | N20: =J20+(M20*1) -> 13 | O20: : | P20: =L20 -> 45.53 | Q20: =(N20*60)+(P20) -> 825.53 | R20: =RANK(Q20,$Q$6:$Q$50,1) -> 23 | T20: 0 | V20: =RANK(T20,$T$6:$T$50,1) -> 1 | X20: 0 | Z20: =RANK(X20,$X$6:$X$50,1) -> 1 | AB20: 0 | AD20: =RANK(AB20,$AB$6:$AB$50,1) -> 1 | AE20: 1 | AF20: : | AG20: 56.46 | AH20: 0 | AI20: =(AE20*60)+(AG20)+(AH20) -> 116.46 | AJ20: =RANK(AI20,$AI$6:$AI$50,1) -> 21 | AL20: 12 | AN20: =RANK(AL20,$AL$6:$AL$50,1) -> 20 | AP20: =IF(C20<>"x",I20+R20+V20+Z20+AD20+AJ20+AN20,999999) -> 68
A21: 16 | B21: 12 | C21: SDH Dolní Lukavice | G21: 2 | I21: =RANK(G21,$G$6:$G$50,1) -> 19 | J21: 1 | K21: : | L21: 29.54 | M21: 12 | N21: =J21+(M21*1) -> 13 | O21: : | P21: =L21 -> 29.54 | Q21: =(N21*60)+(P21) -> 809.54 | R21: =RANK(Q21,$Q$6:$Q$50,1) -> 22 | T21: 0 | V21: =RANK(T21,$T$6:$T$50,1) -> 1 | X21: 0 | Z21: =RANK(X21,$X$6:$X$50,1) -> 1 | AB21: 0 | AD21: =RANK(AB21,$AB$6:$AB$50,1) -> 1 | AE21: 1 | AF21: : | AG21: 40.52 | AH21: 10 | AI21: =(AE21*60)+(AG21)+(AH21) -> 110.52 | AJ21: =RANK(AI21,$AI$6:$AI$50,1) -> 18 | AL21: 13 | AN21: =RANK(AL21,$AL$6:$AL$50,1) -> 21 | AP21: =IF(C21<>"x",I21+R21+V21+Z21+AD21+AJ21+AN21,999999) -> 83
A22: 17 | B22: 18 | C22: SDH Chotěšov | G22: 0 | I22: =RANK(G22,$G$6:$G$50,1) -> 1 | J22: 1 | K22: : | L22: 22.82 | M22: 9 | N22: =J22+(M22*1) -> 10 | O22: : | P22: =L22 -> 22.82 | Q22: =(N22*60)+(P22) -> 622.82 | R22: =RANK(Q22,$Q$6:$Q$50,1) -> 20 | T22: 5 | V22: =RANK(T22,$T$6:$T$50,1) -> 40 | X22: 0 | Z22: =RANK(X22,$X$6:$X$50,1) -> 1 | AB22: 0 | AD22: =RANK(AB22,$AB$6:$AB$50,1) -> 1 | AE22: 1 | AF22: : | AG22: 35.78 | AH22: 0 | AI22: =(AE22*60)+(AG22)+(AH22) -> 95.78 | AJ22: =RANK(AI22,$AI$6:$AI$50,1) -> 8 | AL22: 13 | AN22: =RANK(AL22,$AL$6:$AL$50,1) -> 21 | AP22: =IF(C22<>"x",I22+R22+V22+Z22+AD22+AJ22+AN22,999999) -> 92
A23: 18 | B23: 10 | C23: SDH Letiny | G23: 2 | I23: =RANK(G23,$G$6:$G$50,1) -> 19 | J23: 1 | K23: : | L23: 55.58 | M23: 12 | N23: =J23+(M23*1) -> 13 | O23: : | P23: =L23 -> 55.58 | Q23: =(N23*60)+(P23) -> 835.58 | R23: =RANK(Q23,$Q$6:$Q$50,1) -> 24 | T23: 0 | V23: =RANK(T23,$T$6:$T$50,1) -> 1 | X23: 0 | Z23: =RANK(X23,$X$6:$X$50,1) -> 1 | AB23: 1 | AD23: =RANK(AB23,$AB$6:$AB$50,1) -> 14 | AE23: 1 | AF23: : | AG23: 55.17 | AH23: 30 | AI23: =(AE23*60)+(AG23)+(AH23) -> 145.17 | AJ23: =RANK(AI23,$AI$6:$AI$50,1) -> 25 | AL23: 9 | AN23: =RANK(AL23,$AL$6:$AL$50,1) -> 13 | AP23: =IF(C23<>"x",I23+R23+V23+Z23+AD23+AJ23+AN23,999999) -> 97
A24: 19 | B24: 23 | C24: SDH Letkov 2 | G24: 0 | I24: =RANK(G24,$G$6:$G$50,1) -> 1 | J24: 0 | K24: : | L24: 22.19 | M24: 6 | N24: =J24+(M24*1) -> 6 | O24: : | P24: =L24 -> 22.19 | Q24: =(N24*60)+(P24) -> 382.19 | R24: =RANK(Q24,$Q$6:$Q$50,1) -> 12 | T24: 5 | V24: =RANK(T24,$T$6:$T$50,1) -> 40 | X24: 0 | Z24: =RANK(X24,$X$6:$X$50,1) -> 1 | AB24: 2 | AD24: =RANK(AB24,$AB$6:$AB$50,1) -> 20 | AE24: 2 | AF24: : | AG24: 14.17 | AH24: 10 | AI24: =(AE24*60)+(AG24)+(AH24) -> 144.17 | AJ24: =RANK(AI24,$AI$6:$AI$50,1) -> 24 | AL24: 6 | AN24: =RANK(AL24,$AL$6:$AL$50,1) -> 3 | AP24: =IF(C24<>"x",I24+R24+V24+Z24+AD24+AJ24+AN24,999999) -> 101
A25: 20 | B25: 25 | C25: SDH Blovice | G25: 2 | I25: =RANK(G25,$G$6:$G$50,1) -> 19 | J25: 0 | K25: : | L25: 52.67 | M25: 0 | N25: =J25+(M25*1) -> 0 | O25: : | P25: =L25 -> 52.67 | Q25: =(N25*60)+(P25) -> 52.67 | R25: =RANK(Q25,$Q$6:$Q$50,1) -> 5 | T25: 1 | V25: =RANK(T25,$T$6:$T$50,1) -> 38 | X25: 0 | Z25: =RANK(X25,$X$6:$X$50,1) -> 1 | AB25: 2 | AD25: =RANK(AB25,$AB$6:$AB$50,1) -> 20 | AE25: 1 | AF25: : | AG25: 42.43 | AH25: 0 | AI25: =(AE25*60)+(AG25)+(AH25) -> 102.43 | AJ25: =RANK(AI25,$AI$6:$AI$50,1) -> 13 | AL25: 11 | AN25: =RANK(AL25,$AL$6:$AL$50,1) -> 16 | AP25: =IF(C25<>"x",I25+R25+V25+Z25+AD25+AJ25+AN25,999999) -> 112
A26: 21 | B26: 5 | C26: SDH Nebílovy 2 | G26: 2 | I26: =RANK(G26,$G$6:$G$50,1) -> 19 | J26: 1 | K26: : | L26: 38.94 | M26: 6 | N26: =J26+(M26*1) -> 7 | O26: : | P26: =L26 -> 38.94 | Q26: =(N26*60)+(P26) -> 458.94 | R26: =RANK(Q26,$Q$6:$Q$50,1) -> 16 | T26: 6 | V26: =RANK(T26,$T$6:$T$50,1) -> 43 | X26: 0 | Z26: =RANK(X26,$X$6:$X$50,1) -> 1 | AB26: 1 | AD26: =RANK(AB26,$AB$6:$AB$50,1) -> 14 | AE26: 2 | AF26: : | AG26: 1.1 | AH26: 0 | AI26: =(AE26*60)+(AG26)+(AH26) -> 121.1 | AJ26: =RANK(AI26,$AI$6:$AI$50,1) -> 22 | AL26: 10 | AN26: =RANK(AL26,$AL$6:$AL$50,1) -> 14 | AP26: =IF(C26<>"x",I26+R26+V26+Z26+AD26+AJ26+AN26,999999) -> 129
A27: 22 | B27: 7 | C27: SDH Sedlec | G27: 3 | I27: =RANK(G27,$G$6:$G$50,1) -> 23 | J27: 0 | K27: : | L27: 55.73 | M27: 6 | N27: =J27+(M27*1) -> 6 | O27: : | P27: =L27 -> 55.73 | Q27: =(N27*60)+(P27) -> 415.73 | R27: =RANK(Q27,$Q$6:$Q$50,1) -> 14 | T27: 7 | V27: =RANK(T27,$T$6:$T$50,1) -> 44 | X27: 0 | Z27: =RANK(X27,$X$6:$X$50,1) -> 1 | AB27: 3 | AD27: =RANK(AB27,$AB$6:$AB$50,1) -> 25 | AE27: 1 | AF27: : | AG27: 47.63 | AH27: 0 | AI27: =(AE27*60)+(AG27)+(AH27) -> 107.63 | AJ27: =RANK(AI27,$AI$6:$AI$50,1) -> 16 | AL27: 7 | AN27: =RANK(AL27,$AL$6:$AL$50,1) -> 9 | AP27: =IF(C27<>"x",I27+R27+V27+Z27+AD27+AJ27+AN27,999999) -> 132
A28: 23 | B28: 15 | C28: SDH Rožmitál p. Tř. 1 (mimo okres PJ) | G28: 1 | I28: =RANK(G28,$G$6:$G$50,1) -> 17 | J28: 1 | K28: : | L28: 14.08 | M28: 15 | N28: =J28+(M28*1) -> 16 | O28: : | P28: =L28 -> 14.08 | Q28: =(N28*60)+(P28) -> 974.08 | R28: =RANK(Q28,$Q$6:$Q$50,1) -> 25 | T28: 7 | V28: =RANK(T28,$T$6:$T$50,1) -> 44 | X28: 0 | Z28: =RANK(X28,$X$6:$X$50,1) -> 1 | AB28: 0 | AD28: =RANK(AB28,$AB$6:$AB$50,1) -> 1 | AE28: 2 | AF28: : | AG28: 0.57 | AH28: 10 | AI28: =(AE28*60)+(AG28)+(AH28) -> 130.57 | AJ28: =RANK(AI28,$AI$6:$AI$50,1) -> 23 | AL28: 15 | AN28: =RANK(AL28,$AL$6:$AL$50,1) -> 25 | AP28: =IF(C28<>"x",I28+R28+V28+Z28+AD28+AJ28+AN28,999999) -> 136
A29: 24 | B29: 16 | C29: SDH Rožmitál p. Tř. 2 (mimo okres PJ) | G29: 1 | I29: =RANK(G29,$G$6:$G$50,1) -> 17 | J29: 1 | K29: : | L29: 22.83 | M29: 9 | N29: =J29+(M29*1) -> 10 | O29: : | P29: =L29 -> 22.83 | Q29: =(N29*60)+(P29) -> 622.83 | R29: =RANK(Q29,$Q$6:$Q$50,1) -> 21 | T29: 5 | V29: =RANK(T29,$T$6:$T$50,1) -> 40 | X29: 0 | Z29: =RANK(X29,$X$6:$X$50,1) -> 1 | AB29: 2 | AD29: =RANK(AB29,$AB$6:$AB$50,1) -> 20 | AE29: 1 | AF29: : | AG29: 41.32 | AH29: 10 | AI29: =(AE29*60)+(AG29)+(AH29) -> 111.32 | AJ29: =RANK(AI29,$AI$6:$AI$50,1) -> 19 | AL29: 13 | AN29: =RANK(AL29,$AL$6:$AL$50,1) -> 21 | AP29: =IF(C29<>"x",I29+R29+V29+Z29+AD29+AJ29+AN29,999999) -> 139
A30: 25 | B30: 14 | C30: SDH Hořehledy MIMO SOUTĚŽ (20. místo) | G30: 999 | I30: =RANK(G30,$G$6:$G$50,1) -> 45 | J30: 1 | K30: : | L30: 42.89 | M30: 6 | N30: =J30+(M30*1) -> 7 | O30: : | P30: =L30 -> 42.89 | Q30: =(N30*60)+(P30) -> 462.89 | R30: =RANK(Q30,$Q$6:$Q$50,1) -> 17 | T30: 1 | V30: =RANK(T30,$T$6:$T$50,1) -> 38 | X30: 0 | Z30: =RANK(X30,$X$6:$X$50,1) -> 1 | AB30: 2 | AD30: =RANK(AB30,$AB$6:$AB$50,1) -> 20 | AE30: 1 | AF30: : | AG30: 37.74 | AH30: 0 | AI30: =(AE30*60)+(AG30)+(AH30) -> 97.74 | AJ30: =RANK(AI30,$AI$6:$AI$50,1) -> 11 | AL30: 11 | AN30: =RANK(AL30,$AL$6:$AL$50,1) -> 16 | AP30: =IF(C30<>"x",I30+R30+V30+Z30+AD30+AJ30+AN30,999999) -> 148
A31: 26 | B31: 26 | C31: x | G31: 99 | I31: =RANK(G31,$G$6:$G$50,1) -> 25 | J31: 0 | K31: : | L31: 0 | M31: 99 | N31: =J31+(M31*1) -> 99 | O31: : | P31: =L31 -> 0 | Q31: =(N31*60)+(P31) -> 5940 | R31: =RANK(Q31,$Q$6:$Q$50,1) -> 26 | T31: 0 | V31: =RANK(T31,$T$6:$T$50,1) -> 1 | X31: 99 | Z31: =RANK(X31,$X$6:$X$50,1) -> 26 | AB31: 99 | AD31: =RANK(AB31,$AB$6:$AB$50,1) -> 26 | AE31: 0 | AF31: : | AG31: 0 | AH31: 999 | AI31: =(AE31*60)+(AG31)+(AH31) -> 999 | AJ31: =RANK(AI31,$AI$6:$AI$50,1) -> 26 | AL31: 99 | AN31: =RANK(AL31,$AL$6:$AL$50,1) -> 26 | AP31: =IF(C31<>"x",I31+R31+V31+Z31+AD31+AJ31+AN31,999999) -> 999999
A32: 27 | B32: 27 | C32: x | G32: 99 | I32: =RANK(G32,$G$6:$G$50,1) -> 25 | J32: 0 | K32: : | L32: 0 | M32: 99 | N32: =J32+(M32*1) -> 99 | O32: : | P32: =L32 -> 0 | Q32: =(N32*60)+(P32) -> 5940 | R32: =RANK(Q32,$Q$6:$Q$50,1) -> 26 | T32: 0 | V32: =RANK(T32,$T$6:$T$50,1) -> 1 | X32: 99 | Z32: =RANK(X32,$X$6:$X$50,1) -> 26 | AB32: 99 | AD32: =RANK(AB32,$AB$6:$AB$50,1) -> 26 | AE32: 0 | AF32: : | AG32: 0 | AH32: 999 | AI32: =(AE32*60)+(AG32)+(AH32) -> 999 | AJ32: =RANK(AI32,$AI$6:$AI$50,1) -> 26 | AL32: 99 | AN32: =RANK(AL32,$AL$6:$AL$50,1) -> 26 | AP32: =IF(C32<>"x",I32+R32+V32+Z32+AD32+AJ32+AN32,999999) -> 999999
A33: 28 | B33: 28 | C33: x | G33: 99 | I33: =RANK(G33,$G$6:$G$50,1) -> 25 | J33: 0 | K33: : | L33: 0 | M33: 99 | N33: =J33+(M33*1) -> 99 | O33: : | P33: =L33 -> 0 | Q33: =(N33*60)+(P33) -> 5940 | R33: =RANK(Q33,$Q$6:$Q$50,1) -> 26 | T33: 0 | V33: =RANK(T33,$T$6:$T$50,1) -> 1 | X33: 99 | Z33: =RANK(X33,$X$6:$X$50,1) -> 26 | AB33: 99 | AD33: =RANK(AB33,$AB$6:$AB$50,1) -> 26 | AE33: 0 | AF33: : | AG33: 0 | AH33: 999 | AI33: =(AE33*60)+(AG33)+(AH33) -> 999 | AJ33: =RANK(AI33,$AI$6:$AI$50,1) -> 26 | AL33: 99 | AN33: =RANK(AL33,$AL$6:$AL$50,1) -> 26 | AP33: =IF(C33<>"x",I33+R33+V33+Z33+AD33+AJ33+AN33,999999) -> 999999
A34: 29 | B34: 29 | C34: x | G34: 99 | I34: =RANK(G34,$G$6:$G$50,1) -> 25 | J34: 0 | K34: : | L34: 0 | M34: 99 | N34: =J34+(M34*1) -> 99 | O34: : | P34: =L34 -> 0 | Q34: =(N34*60)+(P34) -> 5940 | R34: =RANK(Q34,$Q$6:$Q$50,1) -> 26 | T34: 0 | V34: =RANK(T34,$T$6:$T$50,1) -> 1 | X34: 99 | Z34: =RANK(X34,$X$6:$X$50,1) -> 26 | AB34: 99 | AD34: =RANK(AB34,$AB$6:$AB$50,1) -> 26 | AE34: 0 | AF34: : | AG34: 0 | AH34: 999 | AI34: =(AE34*60)+(AG34)+(AH34) -> 999 | AJ34: =RANK(AI34,$AI$6:$AI$50,1) -> 26 | AL34: 99 | AN34: =RANK(AL34,$AL$6:$AL$50,1) -> 26 | AP34: =IF(C34<>"x",I34+R34+V34+Z34+AD34+AJ34+AN34,999999) -> 999999
A35: 30 | B35: 30 | C35: x | G35: 99 | I35: =RANK(G35,$G$6:$G$50,1) -> 25 | J35: 0 | K35: : | L35: 0 | M35: 99 | N35: =J35+(M35*1) -> 99 | O35: : | P35: =L35 -> 0 | Q35: =(N35*60)+(P35) -> 5940 | R35: =RANK(Q35,$Q$6:$Q$50,1) -> 26 | T35: 0 | V35: =RANK(T35,$T$6:$T$50,1) -> 1 | X35: 99 | Z35: =RANK(X35,$X$6:$X$50,1) -> 26 | AB35: 99 | AD35: =RANK(AB35,$AB$6:$AB$50,1) -> 26 | AE35: 0 | AF35: : | AG35: 0 | AH35: 999 | AI35: =(AE35*60)+(AG35)+(AH35) -> 999 | AJ35: =RANK(AI35,$AI$6:$AI$50,1) -> 26 | AL35: 99 | AN35: =RANK(AL35,$AL$6:$AL$50,1) -> 26 | AP35: =IF(C35<>"x",I35+R35+V35+Z35+AD35+AJ35+AN35,999999) -> 999999
A36: 31 | B36: 31 | C36: x | G36: 99 | I36: =RANK(G36,$G$6:$G$50,1) -> 25 | J36: 0 | K36: : | L36: 0 | M36: 99 | N36: =J36+(M36*1) -> 99 | O36: : | P36: =L36 -> 0 | Q36: =(N36*60)+(P36) -> 5940 | R36: =RANK(Q36,$Q$6:$Q$50,1) -> 26 | T36: 0 | V36: =RANK(T36,$T$6:$T$50,1) -> 1 | X36: 99 | Z36: =RANK(X36,$X$6:$X$50,1) -> 26 | AB36: 99 | AD36: =RANK(AB36,$AB$6:$AB$50,1) -> 26 | AE36: 0 | AF36: : | AG36: 0 | AH36: 999 | AI36: =(AE36*60)+(AG36)+(AH36) -> 999 | AJ36: =RANK(AI36,$AI$6:$AI$50,1) -> 26 | AL36: 99 | AN36: =RANK(AL36,$AL$6:$AL$50,1) -> 26 | AP36: =IF(C36<>"x",I36+R36+V36+Z36+AD36+AJ36+AN36,999999) -> 999999
A37: 32 | B37: 32 | C37: x | G37: 99 | I37: =RANK(G37,$G$6:$G$50,1) -> 25 | J37: 0 | K37: : | L37: 0 | M37: 99 | N37: =J37+(M37*1) -> 99 | O37: : | P37: =L37 -> 0 | Q37: =(N37*60)+(P37) -> 5940 | R37: =RANK(Q37,$Q$6:$Q$50,1) -> 26 | T37: 0 | V37: =RANK(T37,$T$6:$T$50,1) -> 1 | X37: 99 | Z37: =RANK(X37,$X$6:$X$50,1) -> 26 | AB37: 99 | AD37: =RANK(AB37,$AB$6:$AB$50,1) -> 26 | AE37: 0 | AF37: : | AG37: 0 | AH37: 999 | AI37: =(AE37*60)+(AG37)+(AH37) -> 999 | AJ37: =RANK(AI37,$AI$6:$AI$50,1) -> 26 | AL37: 99 | AN37: =RANK(AL37,$AL$6:$AL$50,1) -> 26 | AP37: =IF(C37<>"x",I37+R37+V37+Z37+AD37+AJ37+AN37,999999) -> 999999
A38: 33 | B38: 33 | C38: x | G38: 99 | I38: =RANK(G38,$G$6:$G$50,1) -> 25 | J38: 0 | K38: : | L38: 0 | M38: 99 | N38: =J38+(M38*1) -> 99 | O38: : | P38: =L38 -> 0 | Q38: =(N38*60)+(P38) -> 5940 | R38: =RANK(Q38,$Q$6:$Q$50,1) -> 26 | T38: 0 | V38: =RANK(T38,$T$6:$T$50,1) -> 1 | X38: 99 | Z38: =RANK(X38,$X$6:$X$50,1) -> 26 | AB38: 99 | AD38: =RANK(AB38,$AB$6:$AB$50,1) -> 26 | AE38: 0 | AF38: : | AG38: 0 | AH38: 999 | AI38: =(AE38*60)+(AG38)+(AH38) -> 999 | AJ38: =RANK(AI38,$AI$6:$AI$50,1) -> 26 | AL38: 99 | AN38: =RANK(AL38,$AL$6:$AL$50,1) -> 26 | AP38: =IF(C38<>"x",I38+R38+V38+Z38+AD38+AJ38+AN38,999999) -> 999999
A39: 34 | B39: 34 | C39: x | G39: 99 | I39: =RANK(G39,$G$6:$G$50,1) -> 25 | J39: 0 | K39: : | L39: 0 | M39: 99 | N39: =J39+(M39*1) -> 99 | O39: : | P39: =L39 -> 0 | Q39: =(N39*60)+(P39) -> 5940 | R39: =RANK(Q39,$Q$6:$Q$50,1) -> 26 | T39: 0 | V39: =RANK(T39,$T$6:$T$50,1) -> 1 | X39: 99 | Z39: =RANK(X39,$X$6:$X$50,1) -> 26 | AB39: 99 | AD39: =RANK(AB39,$AB$6:$AB$50,1) -> 26 | AE39: 0 | AF39: : | AG39: 0 | AH39: 999 | AI39: =(AE39*60)+(AG39)+(AH39) -> 999 | AJ39: =RANK(AI39,$AI$6:$AI$50,1) -> 26 | AL39: 99 | AN39: =RANK(AL39,$AL$6:$AL$50,1) -> 26 | AP39: =IF(C39<>"x",I39+R39+V39+Z39+AD39+AJ39+AN39,999999) -> 999999
A40: 35 | B40: 35 | C40: x | G40: 99 | I40: =RANK(G40,$G$6:$G$50,1) -> 25 | J40: 0 | K40: : | L40: 0 | M40: 99 | N40: =J40+(M40*1) -> 99 | O40: : | P40: =L40 -> 0 | Q40: =(N40*60)+(P40) -> 5940 | R40: =RANK(Q40,$Q$6:$Q$50,1) -> 26 | T40: 0 | V40: =RANK(T40,$T$6:$T$50,1) -> 1 | X40: 99 | Z40: =RANK(X40,$X$6:$X$50,1) -> 26 | AB40: 99 | AD40: =RANK(AB40,$AB$6:$AB$50,1) -> 26 | AE40: 0 | AF40: : | AG40: 0 | AH40: 999 | AI40: =(AE40*60)+(AG40)+(AH40) -> 999 | AJ40: =RANK(AI40,$AI$6:$AI$50,1) -> 26 | AL40: 99 | AN40: =RANK(AL40,$AL$6:$AL$50,1) -> 26 | AP40: =IF(C40<>"x",I40+R40+V40+Z40+AD40+AJ40+AN40,999999) -> 999999
A41: 36 | B41: 36 | C41: x | G41: 99 | I41: =RANK(G41,$G$6:$G$50,1) -> 25 | J41: 0 | K41: : | L41: 0 | M41: 99 | N41: =J41+(M41*1) -> 99 | O41: : | P41: =L41 -> 0 | Q41: =(N41*60)+(P41) -> 5940 | R41: =RANK(Q41,$Q$6:$Q$50,1) -> 26 | T41: 0 | V41: =RANK(T41,$T$6:$T$50,1) -> 1 | X41: 99 | Z41: =RANK(X41,$X$6:$X$50,1) -> 26 | AB41: 99 | AD41: =RANK(AB41,$AB$6:$AB$50,1) -> 26 | AE41: 0 | AF41: : | AG41: 0 | AH41: 999 | AI41: =(AE41*60)+(AG41)+(AH41) -> 999 | AJ41: =RANK(AI41,$AI$6:$AI$50,1) -> 26 | AL41: 99 | AN41: =RANK(AL41,$AL$6:$AL$50,1) -> 26 | AP41: =IF(C41<>"x",I41+R41+V41+Z41+AD41+AJ41+AN41,999999) -> 999999
A42: 37 | B42: 37 | C42: x | G42: 99 | I42: =RANK(G42,$G$6:$G$50,1) -> 25 | J42: 0 | K42: : | L42: 0 | M42: 99 | N42: =J42+(M42*1) -> 99 | O42: : | P42: =L42 -> 0 | Q42: =(N42*60)+(P42) -> 5940 | R42: =RANK(Q42,$Q$6:$Q$50,1) -> 26 | T42: 0 | V42: =RANK(T42,$T$6:$T$50,1) -> 1 | X42: 99 | Z42: =RANK(X42,$X$6:$X$50,1) -> 26 | AB42: 99 | AD42: =RANK(AB42,$AB$6:$AB$50,1) -> 26 | AE42: 0 | AF42: : | AG42: 0 | AH42: 999 | AI42: =(AE42*60)+(AG42)+(AH42) -> 999 | AJ42: =RANK(AI42,$AI$6:$AI$50,1) -> 26 | AL42: 99 | AN42: =RANK(AL42,$AL$6:$AL$50,1) -> 26 | AP42: =IF(C42<>"x",I42+R42+V42+Z42+AD42+AJ42+AN42,999999) -> 999999
A43: 38 | B43: 38 | C43: x | G43: 99 | I43: =RANK(G43,$G$6:$G$50,1) -> 25 | J43: 0 | K43: : | L43: 0 | M43: 99 | N43: =J43+(M43*1) -> 99 | O43: : | P43: =L43 -> 0 | Q43: =(N43*60)+(P43) -> 5940 | R43: =RANK(Q43,$Q$6:$Q$50,1) -> 26 | T43: 0 | V43: =RANK(T43,$T$6:$T$50,1) -> 1 | X43: 99 | Z43: =RANK(X43,$X$6:$X$50,1) -> 26 | AB43: 99 | AD43: =RANK(AB43,$AB$6:$AB$50,1) -> 26 | AE43: 0 | AF43: : | AG43: 0 | AH43: 999 | AI43: =(AE43*60)+(AG43)+(AH43) -> 999 | AJ43: =RANK(AI43,$AI$6:$AI$50,1) -> 26 | AL43: 99 | AN43: =RANK(AL43,$AL$6:$AL$50,1) -> 26 | AP43: =IF(C43<>"x",I43+R43+V43+Z43+AD43+AJ43+AN43,999999) -> 999999
A44: 39 | B44: 39 | C44: x | G44: 99 | I44: =RANK(G44,$G$6:$G$50,1) -> 25 | J44: 0 | K44: : | L44: 0 | M44: 99 | N44: =J44+(M44*1) -> 99 | O44: : | P44: =L44 -> 0 | Q44: =(N44*60)+(P44) -> 5940 | R44: =RANK(Q44,$Q$6:$Q$50,1) -> 26 | T44: 0 | V44: =RANK(T44,$T$6:$T$50,1) -> 1 | X44: 99 | Z44: =RANK(X44,$X$6:$X$50,1) -> 26 | AB44: 99 | AD44: =RANK(AB44,$AB$6:$AB$50,1) -> 26 | AE44: 0 | AF44: : | AG44: 0 | AH44: 999 | AI44: =(AE44*60)+(AG44)+(AH44) -> 999 | AJ44: =RANK(AI44,$AI$6:$AI$50,1) -> 26 | AL44: 99 | AN44: =RANK(AL44,$AL$6:$AL$50,1) -> 26 | AP44: =IF(C44<>"x",I44+R44+V44+Z44+AD44+AJ44+AN44,999999) -> 999999
A45: 40 | B45: 40 | C45: x | G45: 99 | I45: =RANK(G45,$G$6:$G$50,1) -> 25 | J45: 0 | K45: : | L45: 0 | M45: 99 | N45: =J45+(M45*1) -> 99 | O45: : | P45: =L45 -> 0 | Q45: =(N45*60)+(P45) -> 5940 | R45: =RANK(Q45,$Q$6:$Q$50,1) -> 26 | T45: 0 | V45: =RANK(T45,$T$6:$T$50,1) -> 1 | X45: 99 | Z45: =RANK(X45,$X$6:$X$50,1) -> 26 | AB45: 99 | AD45: =RANK(AB45,$AB$6:$AB$50,1) -> 26 | AE45: 0 | AF45: : | AG45: 0 | AH45: 999 | AI45: =(AE45*60)+(AG45)+(AH45) -> 999 | AJ45: =RANK(AI45,$AI$6:$AI$50,1) -> 26 | AL45: 99 | AN45: =RANK(AL45,$AL$6:$AL$50,1) -> 26 | AP45: =IF(C45<>"x",I45+R45+V45+Z45+AD45+AJ45+AN45,999999) -> 999999
A46: 41 | B46: 41 | C46: x | G46: 99 | I46: =RANK(G46,$G$6:$G$50,1) -> 25 | J46: 0 | K46: : | L46: 0 | M46: 99 | N46: =J46+(M46*1) -> 99 | O46: : | P46: =L46 -> 0 | Q46: =(N46*60)+(P46) -> 5940 | R46: =RANK(Q46,$Q$6:$Q$50,1) -> 26 | T46: 0 | V46: =RANK(T46,$T$6:$T$50,1) -> 1 | X46: 99 | Z46: =RANK(X46,$X$6:$X$50,1) -> 26 | AB46: 99 | AD46: =RANK(AB46,$AB$6:$AB$50,1) -> 26 | AE46: 0 | AF46: : | AG46: 0 | AH46: 999 | AI46: =(AE46*60)+(AG46)+(AH46) -> 999 | AJ46: =RANK(AI46,$AI$6:$AI$50,1) -> 26 | AL46: 99 | AN46: =RANK(AL46,$AL$6:$AL$50,1) -> 26 | AP46: =IF(C46<>"x",I46+R46+V46+Z46+AD46+AJ46+AN46,999999) -> 999999
A47: 42 | B47: 42 | C47: x | G47: 99 | I47: =RANK(G47,$G$6:$G$50,1) -> 25 | J47: 0 | K47: : | L47: 0 | M47: 99 | N47: =J47+(M47*1) -> 99 | O47: : | P47: =L47 -> 0 | Q47: =(N47*60)+(P47) -> 5940 | R47: =RANK(Q47,$Q$6:$Q$50,1) -> 26 | T47: 0 | V47: =RANK(T47,$T$6:$T$50,1) -> 1 | X47: 99 | Z47: =RANK(X47,$X$6:$X$50,1) -> 26 | AB47: 99 | AD47: =RANK(AB47,$AB$6:$AB$50,1) -> 26 | AE47: 0 | AF47: : | AG47: 0 | AH47: 999 | AI47: =(AE47*60)+(AG47)+(AH47) -> 999 | AJ47: =RANK(AI47,$AI$6:$AI$50,1) -> 26 | AL47: 99 | AN47: =RANK(AL47,$AL$6:$AL$50,1) -> 26 | AP47: =IF(C47<>"x",I47+R47+V47+Z47+AD47+AJ47+AN47,999999) -> 999999
A48: 43 | B48: 43 | C48: x | G48: 99 | I48: =RANK(G48,$G$6:$G$50,1) -> 25 | J48: 0 | K48: : | L48: 0 | M48: 99 | N48: =J48+(M48*1) -> 99 | O48: : | P48: =L48 -> 0 | Q48: =(N48*60)+(P48) -> 5940 | R48: =RANK(Q48,$Q$6:$Q$50,1) -> 26 | T48: 0 | V48: =RANK(T48,$T$6:$T$50,1) -> 1 | X48: 99 | Z48: =RANK(X48,$X$6:$X$50,1) -> 26 | AB48: 99 | AD48: =RANK(AB48,$AB$6:$AB$50,1) -> 26 | AE48: 0 | AF48: : | AG48: 0 | AH48: 999 | AI48: =(AE48*60)+(AG48)+(AH48) -> 999 | AJ48: =RANK(AI48,$AI$6:$AI$50,1) -> 26 | AL48: 99 | AN48: =RANK(AL48,$AL$6:$AL$50,1) -> 26 | AP48: =IF(C48<>"x",I48+R48+V48+Z48+AD48+AJ48+AN48,999999) -> 999999
A49: 44 | B49: 44 | C49: x | G49: 99 | I49: =RANK(G49,$G$6:$G$50,1) -> 25 | J49: 0 | K49: : | L49: 0 | M49: 99 | N49: =J49+(M49*1) -> 99 | O49: : | P49: =L49 -> 0 | Q49: =(N49*60)+(P49) -> 5940 | R49: =RANK(Q49,$Q$6:$Q$50,1) -> 26 | T49: 0 | V49: =RANK(T49,$T$6:$T$50,1) -> 1 | X49: 99 | Z49: =RANK(X49,$X$6:$X$50,1) -> 26 | AB49: 99 | AD49: =RANK(AB49,$AB$6:$AB$50,1) -> 26 | AE49: 0 | AF49: : | AG49: 0 | AH49: 999 | AI49: =(AE49*60)+(AG49)+(AH49) -> 999 | AJ49: =RANK(AI49,$AI$6:$AI$50,1) -> 26 | AL49: 99 | AN49: =RANK(AL49,$AL$6:$AL$50,1) -> 26 | AP49: =IF(C49<>"x",I49+R49+V49+Z49+AD49+AJ49+AN49,999999) -> 999999
A50: 45 | B50: 45 | C50: x | G50: 99 | I50: =RANK(G50,$G$6:$G$50,1) -> 25 | J50: 0 | K50: : | L50: 0 | M50: 99 | N50: =J50+(M50*1) -> 99 | O50: : | P50: =L50 -> 0 | Q50: =(N50*60)+(P50) -> 5940 | R50: =RANK(Q50,$Q$6:$Q$50,1) -> 26 | T50: 0 | V50: =RANK(T50,$T$6:$T$50,1) -> 1 | X50: 99 | Z50: =RANK(X50,$X$6:$X$50,1) -> 26 | AB50: 99 | AD50: =RANK(AB50,$AB$6:$AB$50,1) -> 26 | AE50: 0 | AF50: : | AG50: 0 | AH50: 999 | AI50: =(AE50*60)+(AG50)+(AH50) -> 999 | AJ50: =RANK(AI50,$AI$6:$AI$50,1) -> 26 | AL50: 99 | AN50: =RANK(AL50,$AL$6:$AL$50,1) -> 26 | AP50: =IF(C50<>"x",I50+R50+V50+Z50+AD50+AJ50+AN50,999999) -> 999999
C52: ↑
C53: u neobsazených startovních čísel nechat malé x

Sheet List2

Sheet List3
